bitfinex-derivatives/quotes_BTCF0:USTF0_20241223
["timestamp","ask_amount","ask_price","bid_price","bid_amount"]
[1734913132428,0.053809,94760.0,94750.0,0.0812]
[1734913132629,0.053809,94760.0,94750.0,0.001]
[1734913132927,0.053809,94760.0,94749.0,0.36238309]
[1734913132928,0.052809,94760.0,94749.0,0.36238309]
[1734913133126,0.052811,94758.0,94749.0,0.36238309]
[1734913133324,0.052812,94756.0,94749.0,0.36238309]
[1734913133527,0.3608,94765.0,94749.0,0.36238309]
[1734913133734,0.3608,94765.0,94697.0,0.3608]
[1734913133735,0.05283,94723.0,94697.0,0.3608]
[1734913134031,0.052836,94712.0,94690.0,0.10700346]
[1734913134230,0.3608,94705.0,94689.0,0.01075992]
[1734913134422,0.3608,94705.0,94695.0,0.052845]
[1734913134620,0.3608,94705.0,94687.0,0.3608]
[1734913134825,0.41372116,94705.0,94687.0,0.3608]
[1734913135026,0.052842,94702.0,94687.0,0.3608]
[1734913135228,0.052842,94702.0,94685.0,0.052851]
[1734913135936,0.052842,94702.0,94689.0,0.052849]
[1734913136141,0.052842,94702.0,94700.0,0.101]
[1734913136331,0.052847,94694.0,94679.0,0.00011123]
[1734913136635,0.3608,94696.0,94692.0,0.052847]
[1734913137227,0.3608,94696.0,94693.0,0.052846]
[1734913137428,0.3608,94696.0,94681.0,0.3608]
[1734913137928,0.3608,94696.0,94691.0,0.052848]
[1734913138537,0.3608,94696.0,94681.0,0.01588]
[1734913138840,0.3608,94687.0,94681.0,0.01588]
[1734913140039,0.3608,94687.0,94679.0,0.00011123]
[1734913140335,0.36284001,94696.0,94679.0,0.36091123]
[1734913140534,0.001,94687.0,94686.0,0.05285]
[1734913142042,0.001,94687.0,94686.0,1.55285]
[1734913142341,0.3608,94696.0,94686.0,1.55285]
[1734913142934,0.3608,94696.0,94686.0,1.55585]
[1734913143328,0.3608,94696.0,94686.0,1.503]
[1734913143529,0.3608,94696.0,94686.0,0.001]
[1734913143530,0.3608,94687.0,94686.0,0.001]
[1734913144241,0.41365,94687.0,94686.0,0.003]
[1734913144942,0.3608,94687.0,94686.0,0.00129669]
[1734913145239,0.3608,94687.0,94675.0,0.04949748]
[1734913145442,0.3608,94676.0,94665.0,0.052862]
[1734913145739,0.3608,94676.0,94667.0,0.05444526]
[1734913145938,0.3618,94687.0,94668.0,0.3608]
[1734913146131,0.3608,94687.0,94682.0,0.052852]
[1734913147343,0.3618,94687.0,94682.0,0.052852]
[1734913148039,0.3618,94687.0,94686.0,0.05285]
[1734913148247,0.15661841,94697.0,94686.0,0.3608]
[1734913148539,0.15661841,94697.0,94696.0,0.413645]
[1734913148948,0.18635044,94705.0,94696.0,0.6608]
[1734913149148,0.18635044,94705.0,94704.0,0.41364]
[1734913149149,8.116e-05,94705.0,94704.0,0.41364]
[1734913150938,0.00108116,94705.0,94704.0,0.41364]
[1734913151247,0.052821,94740.0,94714.0,0.052835]
[1734913151450,0.052821,94740.0,94714.0,0.413635]
[1734913151935,0.413622,94737.0,94714.0,0.413635]
[1734913152135,0.00170138,94715.0,94714.0,0.052835]
[1734913153637,0.00170138,94715.0,94714.0,0.055835]
[1734913153948,0.00011694,94715.0,94714.0,0.055835]
[1734913154149,0.00011694,94715.0,94714.0,0.056835]
[1734913155042,0.3608,94726.0,94714.0,0.01984]
[1734913155238,0.3608,94737.0,94720.0,0.3608]
[1734913155239,0.3618,94737.0,94720.0,0.3608]
[1734913155450,0.3608,94737.0,94727.0,0.21357317]
[1734913155939,0.3608,94739.0,94727.0,0.21357317]
[1734913156137,4.748e-05,94738.0,94727.0,0.16074517]
[1734913156343,4.748e-05,94738.0,94730.0,0.052825]
[1734913157043,0.001,94737.0,94730.0,0.052825]
[1734913157747,0.3608,94731.0,94730.0,0.004]
[1734913159555,0.42332696,94731.0,94720.0,0.10709666]
[1734913159738,0.3608,94721.0,94720.0,0.10709666]
[1734913160042,0.42332696,94731.0,94724.0,0.052829]
[1734913160043,0.42436697,94731.0,94724.0,0.052829]
[1734913160245,0.42332696,94731.0,94721.0,0.16057556]
[1734913160449,0.42332696,94731.0,94727.0,0.052827]
[1734913160641,0.42732696,94731.0,94727.0,0.052827]
[1734913161238,0.42332696,94731.0,94724.0,0.001]
[1734913161541,0.12446262,94728.0,94716.0,0.052834]
[1734913161740,0.12446262,94728.0,94718.0,0.052832]
[1734913162243,0.12446262,94726.0,94718.0,0.16057556]
[1734913162546,0.12446262,94726.0,94716.0,0.16057556]
[1734913163043,0.12746262,94731.0,94722.0,0.3608]
[1734913163345,0.12646262,94731.0,94730.0,0.052826]
[1734913163549,0.12446262,94731.0,94730.0,0.413626]
[1734913163735,0.12446262,94731.0,94730.0,0.052826]
[1734913164337,4.748e-05,94738.0,94723.0,0.0797]
[1734913164541,4.748e-05,94738.0,94733.0,0.052824]
[1734913165647,4.748e-05,94738.0,94724.0,0.052829]
[1734913166451,0.3608,94729.0,94724.0,0.052829]
[1734913166647,0.3608,94729.0,94725.0,0.052828]
[1734913167245,0.3608,94729.0,94726.0,0.052828]
[1734913167842,0.001,94729.0,94728.0,0.052827]
[1734913168243,0.001,94729.0,94728.0,0.413627]
[1734913169552,0.001,94729.0,94728.0,0.3608]
[1734913170054,0.001,94729.0,94719.0,0.413632]
[1734913170352,0.002,94729.0,94719.0,0.052832]
[1734913170746,0.002,94729.0,94720.0,0.052831]
[1734913171150,0.002,94729.0,94721.0,0.052831]
[1734913171353,0.002,94729.0,94723.0,0.05283]
[1734913171554,0.36188,94730.0,94725.0,0.052829]
[1734913171751,4.748e-05,94738.0,94723.0,0.3608]
[1734913172144,4.748e-05,94738.0,94737.0,0.052822]
[1734913172652,4.748e-05,94738.0,94716.0,0.17121641]
[1734913172653,0.052827,94729.0,94711.0,0.3608]
[1734913172854,0.3608,94724.0,94715.0,0.052834]
[1734913174556,0.3618,94724.0,94715.0,0.052834]
[1734913176159,0.052839,94706.0,94694.0,0.052846]
[1734913176360,0.3608,94705.0,94694.0,0.052846]
[1734913176752,0.3608,94705.0,94696.0,0.01050702]
[1734913177257,0.3608,94705.0,94697.0,0.01584]
[1734913177861,0.3608,94705.0,94695.0,0.052845]
[1734913178052,0.4384,94705.0,94695.0,0.052845]
[1734913178357,0.4384,94705.0,94689.0,0.052848]
[1734913178557,0.4394,94705.0,94690.0,0.052848]
[1734913178758,0.4394,94705.0,94690.0,0.0104356]
[1734913178960,0.3628,94705.0,94704.0,0.05442381]
[1734913180460,0.3608,94705.0,94704.0,0.05442381]
[1734913180659,0.3638,94705.0,94704.0,0.05442381]
[1734913181158,0.003,94705.0,94704.0,0.05442381]
[1734913181349,0.12446262,94720.0,94704.0,0.41583869]
[1734913181568,0.12446262,94720.0,94719.0,0.052832]
[1734913181751,0.12446262,94720.0,94719.0,1.552832]
[1734913182463,0.3618,94734.0,94728.0,0.052827]
[1734913182655,0.3608,94734.0,94729.0,0.052826]
[1734913183265,0.3608,94734.0,94732.0,0.052825]
[1734913183762,0.3608,94734.0,94723.0,0.25256542]
[1734913184766,0.3648,94734.0,94724.0,0.052829]
[1734913185157,0.3608,94734.0,94724.0,0.052829]
[1734913185658,0.3608,94734.0,94722.0,0.25256542]
[1734913185966,0.3608,94734.0,94728.0,0.052827]
[1734913187459,0.3628,94734.0,94728.0,0.052827]
[1734913187866,0.3628,94734.0,94723.0,0.25256542]
[1734913188171,0.3628,94734.0,94723.0,0.26115234]
[1734913188358,0.3628,94734.0,94723.0,0.25256542]
[1734913188556,0.3628,94734.0,94732.0,0.052824]
[1734913188862,0.3628,94734.0,94723.0,0.25256542]
[1734913189072,0.3628,94734.0,94727.0,0.25256542]
[1734913189267,0.052827,94728.0,94727.0,0.12866542]
[1734913189562,0.37222146,94734.0,94727.0,0.12866542]
[1734913189759,0.3628,94734.0,94727.0,0.12866542]
[1734913190269,0.00158506,94744.0,94734.0,0.052824]
[1734913190660,0.3608,94735.0,94728.0,0.10712788]
[1734913190862,0.3608,94735.0,94727.0,0.18944515]
[1734913191159,0.001,94734.0,94728.0,0.052827]
[1734913191365,0.001,94734.0,94732.0,0.052824]
[1734913191573,0.3618,94735.0,94732.0,0.052824]
[1734913191865,0.3608,94735.0,94734.0,0.052824]
[1734913192971,0.00404748,94738.0,94734.0,0.052824]
[1734913192972,0.00404748,94738.0,94734.0,0.3608]
[1734913193174,0.00404748,94738.0,94737.0,0.052822]
[1734913193470,0.3608,94772.0,94737.0,0.41014805]
[1734913193672,0.3618,94772.0,94757.0,0.052811]
[1734913194175,0.3618,94772.0,94764.0,0.052807]
[1734913194657,0.3608,94772.0,94764.0,0.052807]
[1734913194862,0.3608,94772.0,94756.0,0.46792788]
[1734913195057,0.3608,94772.0,94756.0,0.47618476]
[1734913195263,0.3608,94772.0,94760.0,0.052809]
[1734913195569,0.3608,94772.0,94762.0,0.052808]
[1734913195969,0.3608,94772.0,94770.0,0.052804]
[1734913196775,0.00158323,94785.0,94777.0,0.052799]
[1734913197065,0.00158323,94785.0,94773.0,0.3608]
[1734913198067,0.00158323,94785.0,94774.0,0.01584]
[1734913198270,0.00158323,94785.0,94773.0,0.3608]
[1734913198471,0.3608,94781.0,94772.0,0.052802]
[1734913200665,0.3608,94781.0,94764.0,0.3608]
[1734913200873,0.3608,94781.0,94770.0,0.10712788]
[1734913201376,0.0528,94778.0,94764.0,0.3608]
[1734913201973,0.0528,94778.0,94762.0,0.052808]
[1734913201974,0.3608,94770.0,94762.0,0.052808]
[1734913202673,0.3608,94770.0,94754.0,0.0805]
[1734913203073,0.3608,94770.0,94760.0,0.10712788]
[1734913203264,0.3608,94770.0,94768.0,0.052804]
[1734913203470,0.00104001,94772.0,94767.0,0.3608]
[1734913203671,0.3608,94782.0,94769.0,0.052804]
[1734913203871,0.3608,94782.0,94767.0,0.3608]
[1734913204167,0.052809,94761.0,94751.0,0.3608]
[1734913204371,0.3608,94759.0,94751.0,0.3608]
[1734913205477,0.41361,94759.0,94751.0,0.3608]
[1734913206473,0.3608,94759.0,94751.0,0.3608]
[1734913207180,0.3608,94759.0,94749.0,0.10712788]
[1734913207380,0.3608,94750.0,94733.0,0.3608]
[1734913207678,0.052817,94746.0,94733.0,0.413624]
[1734913207977,0.0759,94745.0,94733.0,0.413624]
[1734913208376,0.0759,94745.0,94735.0,0.052823]
[1734913209474,0.0759,94745.0,94737.0,0.052822]
[1734913209875,0.3608,94740.0,94733.0,0.3608]
[1734913210981,0.3608,94740.0,94733.0,0.413624]
[1734913211183,0.3628,94740.0,94733.0,0.413624]
[1734913211786,0.3628,94740.0,94733.0,0.3608]
[1734913211975,0.3628,94740.0,94728.0,1.50056]
[1734913211976,0.052821,94739.0,94728.0,0.00056]
[1734913212284,0.052827,94729.0,94715.0,0.052834]
[1734913212584,0.3608,94725.0,94720.0,0.3149664]
[1734913212990,0.413629,94725.0,94720.0,0.6299328]
[1734913213284,0.413629,94725.0,94720.0,0.6304928]
[1734913213488,0.413629,94725.0,94720.0,0.3155264]
[1734913213676,0.413629,94725.0,94720.0,0.3149664]
[1734913215477,0.3608,94725.0,94720.0,0.3149664]
[1734913215672,0.3618,94740.0,94724.0,0.0529103]
[1734913215883,0.3608,94731.0,94727.0,0.052828]
[1734913216081,0.3608,94731.0,94728.0,1.5]
[1734913216277,0.3608,94731.0,94729.0,0.052827]
[1734913216884,0.3608,94740.0,94731.0,0.052825]
[1734913217083,0.3608,94740.0,94728.0,1.50056]
[1734913217580,0.00158384,94744.0,94742.0,0.052819]
[1734913217787,0.3608,94750.0,94749.0,0.052815]
[1734913217987,0.45528992,94767.0,94743.0,0.0769]
[1734913218189,0.09448992,94767.0,94762.0,0.052808]
[1734913218578,0.09448992,94767.0,94762.0,0.068648]
[1734913218782,0.09448992,94767.0,94762.0,0.01584]
[1734913219095,0.3608,94769.0,94747.0,0.18903371]
[1734913219896,0.05281,94759.0,94747.0,0.18903371]
[1734913220394,0.46792788,94760.0,94749.0,0.18903371]
[1734913220899,0.052814,94752.0,94749.0,0.18903371]
[1734913221597,0.3608,94760.0,94740.0,0.29616159]
[1734913221780,0.05281,94759.0,94742.0,0.052819]
[1734913222287,0.052811,94757.0,94742.0,0.052819]
[1734913222589,0.3608,94752.0,94740.0,0.18903371]
[1734913222790,0.052815,94750.0,94740.0,0.18903371]
[1734913222994,0.052815,94750.0,94742.0,0.18903371]
[1734913223187,0.3618,94752.0,94742.0,0.18903371]
[1734913223494,0.3608,94752.0,94742.0,0.18903371]
[1734913223795,0.3608,94752.0,94745.0,0.052817]
[1734913224195,0.001,94750.0,94745.0,0.052817]
[1734913224493,0.001,94750.0,94749.0,0.052815]
[1734913225096,0.001,94750.0,94744.0,0.0816]
[1734913225097,0.45528992,94772.0,94761.0,0.052809]
[1734913225285,0.09520992,94772.0,94761.0,0.052809]
[1734913225481,0.09448992,94772.0,94761.0,0.052809]
[1734913225788,0.09448992,94772.0,94762.0,0.0764]
[1734913226184,0.36152,94780.0,94762.0,0.0764]
[1734913226393,0.00072,94780.0,94762.0,0.0764]
[1734913226688,0.09448992,94797.0,94783.0,0.052796]
[1734913226893,0.09448992,94797.0,94784.0,0.3608]
[1734913228285,0.3608,94799.0,94784.0,0.4372]
[1734913228999,0.3608,94799.0,94789.0,0.10712788]
[1734913230793,0.3618,94799.0,94789.0,0.11212788]
[1734913232889,0.001,94799.0,94792.0,0.3608]
[1734913233391,0.001,94799.0,94798.0,0.052788]
[1734913236088,0.001,94799.0,94798.0,0.056788]
[1734913236289,0.36152,94810.0,94798.0,0.004]
[1734913236495,0.09520992,94824.0,94809.0,0.3608]
[1734913236693,0.09520992,94824.0,94823.0,0.413574]
[1734913236694,0.00072,94824.0,94823.0,0.413574]
[1734913236900,0.09448992,94829.0,94823.0,0.413574]
[1734913238097,0.00158257,94839.0,94824.0,0.01584]
[1734913238292,0.00158257,94839.0,94833.0,0.3608]
[1734913240287,0.00158257,94839.0,94835.0,0.052767]
[1734913240495,0.00158257,94839.0,94837.0,0.052766]
[1734913240799,0.001,94839.0,94837.0,0.052766]
[1734913240993,0.001,94839.0,94837.0,0.413566]
[1734913241196,0.052746,94874.0,94855.0,0.052756]
[1734913241398,0.052746,94874.0,94838.0,0.19862822]
[1734913241399,0.00072,94864.0,94858.0,0.3608]
[1734913241599,0.09448992,94869.0,94858.0,0.3608]
[1734913242297,0.09448992,94869.0,94866.0,0.3608]
[1734913242999,0.414263,94879.0,94866.0,0.3608]
[1734913243192,0.05276,94848.0,94847.0,0.36136]
[1734913243394,0.052761,94848.0,94840.0,0.10712788]
[1734913243593,0.0809,94847.0,94840.0,0.10712788]
[1734913243798,0.0809,94847.0,94837.0,0.11212788]
[1734913243990,0.052764,94842.0,94837.0,0.11212788]
[1734913244196,0.052764,94842.0,94834.0,0.3608]
[1734913245501,0.0829,94847.0,94835.0,0.052767]
[1734913246793,0.0829,94847.0,94843.0,0.3608]
[1734913246794,0.0809,94847.0,94843.0,0.3608]
[1734913247099,0.36152,94859.0,94843.0,0.3608]
[1734913247100,0.00072,94859.0,94843.0,0.3608]
[1734913247393,0.0786,94868.0,94857.0,0.052755]
[1734913247600,0.0786,94868.0,94858.0,0.16021604]
[1734913247902,0.0786,94868.0,94857.0,0.052755]
[1734913248600,0.0796,94868.0,94857.0,0.061755]
[1734913249293,0.3608,94861.0,94842.0,0.3608]
[1734913249496,0.05276,94850.0,94842.0,0.3608]
[1734913251206,0.0763,94860.0,94842.0,0.3608]
[1734913251401,0.052763,94844.0,94842.0,0.3608]
[1734913251607,0.0734,94843.0,94835.0,0.3608]
[1734913252198,0.0734,94843.0,94835.0,0.413567]
[1734913252397,0.0734,94843.0,94835.0,0.3608]
[1734913252604,0.0734,94843.0,94839.0,0.052765]
[1734913253897,0.0734,94843.0,94841.0,0.052764]
[1734913254908,0.002,94843.0,94841.0,0.052764]
[1734913255700,0.002,94843.0,94842.0,0.0742]
[1734913256009,0.002,94843.0,94841.0,0.052764]
[1734913256203,0.002,94843.0,94835.0,0.72216]
[1734913256623,0.052759,94850.0,94835.0,0.7216]
[1734913256912,0.052759,94850.0,94838.0,0.052765]
[1734913257900,0.053759,94850.0,94838.0,0.052765]
[1734913258503,0.052759,94850.0,94838.0,0.053765]
[1734913258711,0.3608,94861.0,94838.0,0.001]
[1734913258712,0.09389015,94857.0,94838.0,0.001]
[1734913258897,0.09389015,94857.0,94843.0,0.3608]
[1734913259104,0.09389015,94857.0,94856.0,0.3608]
[1734913259906,0.09389015,94857.0,94853.0,0.053317]
[1734913260112,0.09389015,94857.0,94853.0,0.052757]
[1734913260313,0.12518687,94862.0,94846.0,0.052761]
[1734913260314,0.052753,94861.0,94846.0,0.052761]
[1734913260515,0.052754,94860.0,94849.0,0.052759]
[1734913260713,0.09389015,94862.0,94849.0,0.052759]
[1734913261022,0.004,94857.0,94849.0,0.052759]
[1734913261709,0.14664415,94859.0,94849.0,0.052759]
[1734913262117,0.09389015,94859.0,94851.0,0.413558]
[1734913262506,0.09389015,94859.0,94851.0,0.052758]
[1734913262918,0.052756,94856.0,94855.0,0.00144327]
[1734913264127,0.137456,94856.0,94855.0,0.00144327]
[1734913264316,0.052758,94852.0,94839.0,0.413565]
[1734913264614,0.3608,94848.0,94839.0,0.3608]
[1734913264811,0.052765,94841.0,94839.0,0.3608]
[1734913265010,0.0783,94847.0,94839.0,0.3608]
[1734913265214,0.0783,94847.0,94840.0,0.052764]
[1734913265817,0.12604939,94842.0,94840.0,0.052764]
[1734913266219,0.12604939,94842.0,94830.0,0.82201031]
[1734913266604,0.12604939,94842.0,94840.0,0.052764]
[1734913266907,0.12604939,94842.0,94839.0,0.3608]
[1734913266908,0.15756174,94844.0,94843.0,0.052763]
[1734913268419,0.12626032,94844.0,94843.0,0.052763]
[1734913268829,0.12626032,94844.0,94841.0,0.18939048]
[1734913269419,0.052763,94843.0,94840.0,0.18939048]
[1734913269618,0.06470359,94843.0,94840.0,0.18939048]
[1734913269815,0.01194059,94842.0,94840.0,0.18939048]
[1734913270028,0.36152,94845.0,94840.0,0.18939048]
[1734913270215,0.3608,94850.0,94840.0,0.18939048]
[1734913270411,0.3608,94850.0,94844.0,0.052762]
[1734913270818,0.3608,94850.0,94840.0,0.18939048]
[1734913271125,0.4795509,94850.0,94840.0,0.18939048]
[1734913271418,0.4795509,94850.0,94831.0,0.18939048]
[1734913271419,0.001,94845.0,94831.0,0.18939048]
[1734913271639,0.052766,94838.0,94831.0,0.18939048]
[1734913272318,0.052766,94838.0,94832.0,0.05435076]
[1734913272520,0.21070484,94838.0,94832.0,0.05435076]
[1734913272824,0.15793884,94838.0,94833.0,0.052768]
[1734913274221,0.002,94838.0,94833.0,0.052768]
[1734913274423,0.052766,94837.0,94832.0,0.19097224]
[1734913275430,0.052766,94837.0,94832.0,0.00158176]
[1734913276031,0.15993884,94838.0,94836.0,0.052766]
[1734913276717,0.003,94837.0,94836.0,0.052766]
[1734913277121,0.003,94837.0,94836.0,0.24215648]
[1734913277325,0.09476701,94838.0,94836.0,0.24515648]
[1734913278018,0.09476701,94838.0,94836.0,0.24415648]
[1734913278420,0.09476701,94838.0,94836.0,0.19139048]
[1734913278619,0.052763,94843.0,94836.0,0.19139048]
[1734913278620,0.052763,94843.0,94837.0,0.25037375]
[1734913279031,0.413566,94839.0,94837.0,0.25037375]
[1734913279925,0.052766,94837.0,94836.0,0.002]
[1734913280318,0.052766,94837.0,94835.0,0.18958065]
[1734913281327,0.00176,94839.0,94837.0,0.052766]
[1734913281521,0.001,94839.0,94837.0,0.052766]
[1734913282723,0.001,94839.0,94832.0,0.00158176]
[1734913282932,0.001,94839.0,94834.0,0.25037375]
[1734913283226,0.006,94837.0,94835.0,0.001]
[1734913283823,0.09476799,94840.0,94834.0,0.25037375]
[1734913284130,0.09476799,94840.0,94838.0,0.18953674]
[1734913285322,0.09476799,94840.0,94839.0,0.18953674]
[1734913286826,0.003,94840.0,94839.0,0.052765]
[1734913287222,0.008,94840.0,94839.0,0.053765]
[1734913287625,0.008,94840.0,94839.0,0.052765]
[1734913287931,0.09476799,94855.0,94845.0,0.052762]
[1734913289527,0.09476799,94853.0,94851.0,0.18951904]
[1734913291427,0.09876799,94853.0,94851.0,0.18951904]
[1734913291832,0.09476799,94853.0,94851.0,0.18951904]
[1734913292034,0.09876799,94853.0,94852.0,0.052758]
[1734913292328,0.09876799,94853.0,94851.0,0.18951904]
[1734913292529,0.052759,94850.0,94849.0,0.25269205]
[1734913293826,0.09476799,94850.0,94847.0,0.25269205]
[1734913294025,0.05276,94848.0,94847.0,0.25269205]
[1734913294233,0.09876799,94850.0,94847.0,0.25269205]
[1734913294729,0.09876799,94850.0,94847.0,0.30545205]
[1734913295033,0.006,94850.0,94848.0,0.24235473]
[1734913296234,0.3608,94849.0,94848.0,0.18959473]
[1734913296633,0.052762,94846.0,94844.0,0.31586506]
[1734913296829,0.0838,94845.0,94844.0,0.31586506]
[1734913297530,0.17859092,94845.0,94844.0,0.1895976]
[1734913298231,0.17859092,94845.0,94844.0,0.2423596]
[1734913298743,0.0898,94845.0,94844.0,0.001]
[1734913300432,0.052764,94842.0,94841.0,0.2527968]
[1734913300623,0.413564,94842.0,94841.0,0.2527968]
[1734913300826,0.413564,94842.0,94817.0,0.43815407]
[1734913300827,0.05277,94830.0,94817.0,0.43815407]
[1734913301027,0.052777,94818.0,94817.0,0.43815407]
[1734913301227,0.413577,94818.0,94817.0,0.43815407]
[1734913302024,0.3608,94818.0,94806.0,0.00064]
[1734913302231,0.3608,94809.0,94808.0,0.10681031]
[1734913302536,0.3608,94809.0,94807.0,0.052783]
[1734913302839,0.36152,94818.0,94817.0,0.052777]
[1734913303034,0.3608,94818.0,94817.0,0.052777]
[1734913303730,0.3608,94818.0,94817.0,0.054777]
[1734913304133,0.15778586,94823.0,94817.0,0.002]
[1734913304336,0.15778586,94823.0,94822.0,0.052775]
[1734913304741,0.12617323,94825.0,94822.0,0.052775]
[1734913305233,0.12617323,94825.0,94823.0,0.052774]
[1734913306032,0.18934304,94837.0,94822.0,0.3608]
[1734913306033,0.09460036,94830.0,94825.0,0.052773]
[1734913306535,0.09460036,94830.0,94824.0,0.0769]
[1734913307037,0.003,94825.0,94824.0,0.0769]
[1734913307434,0.052771,94830.0,94822.0,0.3608]
[1734913307641,0.056771,94830.0,94822.0,0.3608]
[1734913307840,0.052774,94823.0,94822.0,0.3608]
[1734913308040,0.09460036,94825.0,94822.0,0.3608]
[1734913308240,0.09860036,94825.0,94822.0,0.3608]
[1734913309047,0.09460036,94824.0,94822.0,0.3608]
[1734913310246,0.09760036,94824.0,94822.0,0.3608]
[1734913310542,0.052776,94820.0,94818.0,0.0831]
[1734913311147,0.09760036,94824.0,94818.0,0.0831]
[1734913311652,0.09760036,94824.0,94822.0,0.052774]
[1734913312250,0.09460036,94823.0,94818.0,0.0831]
[1734913312940,0.002,94820.0,94818.0,0.0831]
[1734913313539,0.09460036,94823.0,94818.0,0.0831]
[1734913313741,0.09460036,94823.0,94818.0,0.4439]
[1734913313949,0.09460036,94823.0,94822.0,0.052775]
[1734913315244,0.09460036,94829.0,94824.0,0.052773]
[1734913315446,0.09460036,94829.0,94825.0,0.1657]
[1734913316141,0.09460036,94831.0,94825.0,0.1657]
[1734913316451,0.09460036,94831.0,94826.0,0.052772]
[1734913316948,0.004,94829.0,94827.0,0.052771]
[1734913317745,0.004,94831.0,94827.0,0.052771]
[1734913318045,0.004,94831.0,94825.0,0.17495555]
[1734913318239,0.004,94831.0,94830.0,0.41357]
[1734913318639,0.09860036,94831.0,94830.0,0.41357]
[1734913319036,0.09460036,94831.0,94830.0,0.41357]
[1734913319751,0.09460036,94840.0,94830.0,0.41357]
[1734913319950,0.006,94831.0,94830.0,0.41457]
[1734913320458,0.09460036,94840.0,94830.0,0.41357]
[1734913320746,0.3608,94845.0,94830.0,0.3618]
[1734913320747,0.006,94831.0,94830.0,0.3618]
[1734913322853,0.09460036,94833.0,94830.0,0.3618]
[1734913323349,0.09460036,94833.0,94830.0,0.3608]
[1734913323539,0.006,94831.0,94830.0,0.3618]
[1734913324048,0.05277,94832.0,94830.0,0.3618]
[1734913324247,0.09460036,94831.0,94830.0,0.3618]
[1734913324444,0.53920036,94831.0,94810.0,0.00158212]
[1734913324649,0.53920036,94831.0,94805.0,0.3608]
[1734913324650,0.052784,94806.0,94805.0,0.3608]
[1734913324854,0.46761031,94820.0,94795.0,0.3608]
[1734913324855,0.3608,94811.0,94795.0,0.3608]
[1734913325049,0.46761031,94820.0,94795.0,0.3608]
[1734913325050,0.0849,94805.0,94795.0,0.3608]
[1734913325239,0.15778586,94815.0,94803.0,0.3608]
[1734913325441,0.052779,94814.0,94805.0,0.052784]
[1734913326045,0.05278,94813.0,94805.0,0.052784]
[1734913326349,0.15778586,94815.0,94803.0,0.006]
[1734913326350,0.3608,94809.0,94803.0,0.006]
[1734913326941,0.3608,94809.0,94805.0,0.004]
[1734913327347,0.12622393,94808.0,94805.0,0.004]
[1734913328352,0.48774393,94809.0,94805.0,0.004]
[1734913328555,0.48702393,94809.0,94805.0,0.004]
[1734913328857,0.052784,94807.0,94805.0,0.004]
[1734913329155,0.052784,94807.0,94803.0,0.005]
[1734913329855,0.052784,94807.0,94805.0,0.004]
[1734913330152,0.12622393,94808.0,94805.0,0.004]
[1734913330354,0.12622393,94808.0,94804.0,0.052785]
[1734913330554,0.09467369,94805.0,94804.0,0.052785]
[1734913330855,0.09467369,94805.0,94804.0,1.629885]
[1734913331255,0.09467369,94805.0,94803.0,0.005]
[1734913331456,0.052785,94804.0,94803.0,0.005]
[1734913331958,0.09467369,94807.0,94803.0,0.005]
[1734913332360,0.09467369,94807.0,94803.0,0.057785]
[1734913332659,0.09467369,94807.0,94803.0,1.552785]
[1734913332861,0.12622393,94810.0,94805.0,0.004]
[1734913333453,0.12622393,94810.0,94803.0,1.558345]
[1734913333652,0.17900493,94810.0,94803.0,0.005]
[1734913333855,0.09467872,94806.0,94803.0,0.005]
[1734913334065,0.09467872,94806.0,94794.0,0.05287459]
[1734913334066,0.3608,94804.0,94794.0,8.459e-05]
[1734913334362,0.41359,94795.0,94794.0,8.459e-05]
[1734913334560,0.3608,94795.0,94774.0,0.4419]
[1734913334750,0.052798,94781.0,94774.0,0.4419]
[1734913334956,0.052798,94781.0,94774.0,0.3608]
[1734913335361,0.052801,94775.0,94774.0,0.3608]
[1734913335752,0.05288558,94775.0,94774.0,0.3608]
[1734913336150,0.05288558,94775.0,94762.0,0.0811]
[1734913336151,0.052804,94769.0,94762.0,0.0811]
[1734913336361,0.36088458,94775.0,94762.0,0.0811]
[1734913336362,0.052805,94768.0,94762.0,0.0811]
[1734913337459,0.054805,94768.0,94762.0,0.0811]
[1734913337750,0.052808,94764.0,94755.0,0.0802]
[1734913338556,0.05281,94759.0,94752.0,0.0845]
[1734913338762,0.05281,94759.0,94752.0,0.09348427]
[1734913339357,0.052813,94754.0,94752.0,0.0845]
[1734913339756,0.36152,94758.0,94745.0,0.00938447]
[1734913339965,0.4445,94767.0,94751.0,0.052814]
[1734913340155,0.052809,94761.0,94751.0,0.052814]
[1734913340357,0.4445,94767.0,94756.0,0.052811]
[1734913340358,0.002,94759.0,94756.0,0.052811]
[1734913340756,0.4445,94767.0,94756.0,0.052811]
[1734913341163,0.052806,94766.0,94751.0,0.3608]
[1734913341462,0.052807,94765.0,94751.0,0.3608]
[1734913342664,0.052807,94765.0,94756.0,0.001]
[1734913343256,0.052807,94765.0,94751.0,0.3608]
[1734913343658,0.052808,94763.0,94748.0,0.052815]
[1734913343859,0.003,94765.0,94746.0,0.082]
[1734913344160,0.052812,94755.0,94746.0,0.082]
[1734913344361,0.052819,94744.0,94729.0,0.413626]
[1734913344565,0.052819,94744.0,94734.0,0.0837]
[1734913345167,0.36152,94747.0,94734.0,0.0837]
[1734913345372,0.052819,94743.0,94734.0,0.0837]
[1734913345863,0.3616,94747.0,94734.0,0.0837]
[1734913346060,0.3608,94747.0,94737.0,0.052822]
[1734913346255,0.05281,94758.0,94746.0,0.002]
[1734913346463,0.36156,94759.0,94746.0,0.002]
[1734913346464,0.09461078,94755.0,94746.0,0.002]
[1734913346658,0.052813,94754.0,94746.0,0.00184381]
[1734913346863,0.052813,94754.0,94747.0,1.5]
[1734913347761,0.00072,94759.0,94757.0,0.052811]
[1734913347962,0.09461078,94760.0,94758.0,0.0826]